bitfinex/quotes_ETHUSD_20250411
["timestamp","ask_amount","ask_price","bid_price","bid_amount"]
[1744382678101,6.42808,1555.7,1555.4,7.30725672]
[1744382678307,6.4269,1556.0,1555.5,4.87827982]
[1744382678512,12.85385,1556.0,1555.6,12.85612]
[1744382678672,6.42715,1555.9,1555.6,6.42799]
[1744382678866,6.42715,1555.9,1555.6,12.85621]
[1744382679067,6.42715,1555.9,1555.6,6.42799]
[1744382679273,6.42804,1555.7,1555.4,3.51879465]
[1744382679486,12.85619,1555.7,1555.4,3.8139]
[1744382679707,6.42804,1555.7,1555.4,3.8139]
[1744382679893,6.42804,1555.7,1555.4,10.30713425]
[1744382680210,12.85557,1555.8,1555.4,16.67212]
[1744382680506,6.42765,1555.8,1555.4,16.67212]
[1744382680710,14.139935,1555.9,1555.5,12.85727]
[1744382680892,14.139935,1555.9,1555.5,6.42862]
[1744382681101,12.85556,1555.8,1555.4,19.71774794]
[1744382681416,6.42761,1555.8,1555.5,6.42859]
[1744382681733,6.42716,1555.9,1555.6,6.42824]
[1744382681883,12.85369,1556.0,1555.6,12.85651]
[1744382682079,6.42678,1556.0,1555.7,6.42797]
[1744382682299,6.42678,1556.0,1555.7,7.23337]
[1744382682617,18.94288,1556.1,1555.7,13.66118]
[1744382682829,0.05,1556.4,1556.0,0.7907]
[1744382682981,0.05,1556.4,1556.1,6.42626]
[1744382683182,6.47521,1556.4,1556.1,6.42626]
[1744382683730,6.47521,1556.4,1556.1,12.85242]
[1744382683888,0.05,1556.4,1556.1,12.85242]
[1744382684218,12.9004,1556.4,1556.0,7.21732]
[1744382684379,6.42565,1556.3,1556.0,7.21732]
[1744382685021,12.85149,1556.3,1556.0,0.7907]
[1744382685198,12.85134,1556.3,1556.0,0.7907]
[1744382685397,6.42565,1556.3,1556.0,7.21729]
[1744382685811,6.42565,1556.3,1556.0,13.6439]
[1744382685995,6.42604,1556.2,1555.9,3.0]
[1744382686195,6.42669,1556.1,1555.8,22.61797]
[1744382686625,1.290084,1556.3,1556.0,3.7632]
[1744382686931,6.47508,1556.4,1556.1,6.9762]
[1744382687283,12.90057,1556.4,1556.0,10.18981]
[1744382687524,6.4255,1556.3,1556.0,10.18979]
[1744382687713,6.4255,1556.3,1556.0,10.18978]
[1744382687916,0.05,1556.4,1556.1,12.85244]
[1744382688315,0.05,1556.4,1556.3,6.42549]
[1744382688509,0.05,1556.4,1556.2,6.42588]
[1744382688693,0.05,1556.4,1556.2,6.42579]
[1744382688893,0.05,1556.4,1556.2,12.85155]
[1744382689125,0.05,1556.4,1556.3,7.18379]
[1744382689326,0.05,1556.4,1556.3,0.7583]
[1744382689625,0.05,1556.4,1556.3,7.18379]
[1744382689801,0.05,1556.4,1556.3,0.7583]
[1744382690433,0.05,1556.4,1556.2,6.42573]
[1744382692031,0.05,1556.4,1556.2,6.48997842]
[1744382692216,0.05,1556.4,1556.2,14.28556726]
[1744382692530,0.05,1556.4,1556.3,6.42549]
[1744382692826,0.05,1556.4,1556.2,14.70076363]
[1744382693129,0.03297312,1556.4,1556.2,14.70076363]
[1744382693330,0.03297312,1556.4,1556.2,8.27498363]
[1744382693532,0.03297312,1556.4,1556.2,14.70076363]
[1744382693827,0.03297312,1556.4,1556.2,8.27498363]
[1744382694194,0.03297312,1556.4,1556.2,6.42573]
[1744382694391,6.45808312,1556.4,1556.1,7.20812]
[1744382695120,6.45817312,1556.4,1556.1,0.7819]
[1744382695298,6.4259,1556.2,1555.9,14.15833489]
[1744382696214,12.85125,1556.3,1555.9,14.15833489]
[1744382696604,6.42595,1556.2,1555.9,7.73130489]
[1744382696807,6.45822312,1556.4,1556.1,6.42631]
[1744382697114,12.88350312,1556.4,1556.1,6.42631]
[1744382697318,6.42555,1556.3,1556.0,6.42662]
[1744382697551,6.42555,1556.3,1556.0,12.91749835]
[1744382697826,6.42555,1556.3,1556.0,6.42662]
[1744382698017,6.45818312,1556.4,1556.0,6.49086835]
[1744382698221,6.45818312,1556.4,1556.2,0.7702]
[1744382698421,12.88342312,1556.4,1556.2,0.7702]
[1744382699330,12.85129,1556.3,1556.0,7.24341]
[1744382699632,0.03297312,1556.4,1555.8,7.23684]
[1744382699633,6.42623,1556.2,1555.8,7.23684]
[1744382699835,6.42623,1556.2,1555.9,3.0]
[1744382699836,6.42614,1556.2,1555.9,3.0]
[1744382699997,6.42614,1556.2,1555.8,8.91986062]
[1744382699998,6.42637,1556.1,1555.8,15.283104]
[1744382700642,6.4259,1556.2,1555.8,0.8094]
[1744382700854,0.03297312,1556.4,1555.8,0.8094]
[1744382701003,0.03297312,1556.4,1556.1,6.4263]
[1744382701337,0.03297312,1556.4,1556.3,10.0872565]
[1744382701700,0.03297312,1556.4,1556.3,6.42549]
[1744382701899,0.03297312,1556.4,1556.3,17.021936]
[1744382702100,0.03297312,1556.4,1556.3,17.843736]
[1744382702401,0.03297312,1556.4,1556.3,6.725927]
[1744382702626,0.03297312,1556.4,1556.3,10.79729]
[1744382702835,0.03297312,1556.4,1556.3,7.4835665]
[1744382703008,0.03297312,1556.4,1556.3,14.4590565]
[1744382706025,3.12e-06,1556.4,1556.3,18.120823]
[1744382706249,3.12e-06,1556.4,1556.3,18.49986688]
[1744382706956,0.394617,1556.6,1556.5,6.97467]
[1744382707255,7e-06,1556.6,1556.5,14.4376365]
[1744382707456,12.89231,1557.4,1557.0,6.42235]
[1744382707659,6.47105,1557.4,1557.1,6.42213]
[1744382707833,0.05,1557.4,1557.3,3.6617665]
[1744382708156,0.05,1557.4,1557.3,10.0831365]
[1744382708358,0.05,1557.4,1557.3,4.2117665]
[1744382708537,0.05,1557.4,1557.3,10.6331365]
[1744382708935,0.05,1557.4,1557.3,22.64533598]
[1744382709140,0.05,1557.4,1557.3,27.50075899]
[1744382709361,0.05,1557.4,1557.3,28.15596537]
[1744382710280,4.64292228,1558.1,1557.9,6.41882]
[1744382710573,4.64292228,1558.1,1557.7,6.4196]
[1744382710742,11.06117228,1558.1,1557.7,6.41955]
[1744382710942,6.39081251,1558.1,1557.5,6.42027]
[1744382711154,6.41848,1558.0,1557.6,6.41987]
[1744382711465,12.83719,1558.0,1557.6,6.41987]
[1744382711630,6.41894,1557.9,1557.6,6.41987]
[1744382711827,12.83737,1558.0,1557.6,12.83979]
[1744382712029,6.41909,1557.9,1557.6,6.41996]
[1744382712235,11.06107228,1558.1,1557.7,6.41957]
[1744382712446,1.10610723,1558.0,1557.7,6.41952]
[1744382712648,4.64292228,1558.1,1557.8,0.55]
[1744382712845,4.64292228,1558.1,1557.8,6.41894]
[1744382713133,4.64292228,1558.1,1557.9,6.41873]
[1744382713333,4.64292228,1558.1,1558.0,7.77718]
[1744382713537,4.64292228,1558.1,1558.0,14.15561488]
[1744382714681,0.394617,1558.1,1558.0,14.15561488]
[1744382715683,0.16411093,1558.1,1558.0,17.63717041]
[1744382715892,0.1086421,1558.7,1558.0,17.63717041]
[1744382715893,0.1086421,1558.7,1558.6,7.74401]
[1744382716179,0.1086421,1558.7,1558.6,25.42100988]
[1744382716385,0.1086421,1558.7,1558.6,0.778]
[1744382716533,0.1086421,1558.7,1558.6,6.41601]
[1744382716745,0.1086421,1558.7,1558.5,10.73319288]
[1744382716974,0.1086421,1558.7,1558.6,6.96601]
[1744382717356,0.1086421,1558.7,1558.6,15.90701]
[1744382717654,0.1086421,1558.7,1558.6,18.6197547]
[1744382717854,0.1086421,1558.7,1558.6,22.3910547]
[1744382718378,4.79830528,1559.3,1559.0,6.41419]
[1744382718535,4.79830528,1559.3,1559.0,12.82832]
[1744382718737,4.79830528,1559.3,1559.1,6.41391]
[1744382718959,0.55,1559.3,1559.1,0.0641312]
[1744382719165,0.55,1559.3,1559.1,10.72607561]
[1744382719462,0.55,1559.3,1559.0,0.55]
[1744382719650,0.55,1559.3,1559.0,0.06413024]
[1744382719968,0.55,1559.3,1559.1,6.9638]
[1744382720170,0.55,1559.3,1559.2,15.09011288]
[1744382720462,0.394617,1559.7,1559.5,0.55]
[1744382720652,0.394617,1559.7,1559.6,20.21787288]
[1744382720826,0.394617,1559.7,1559.4,0.8117]
[1744382721032,0.394617,1559.7,1559.5,9.489]
[1744382721237,0.394617,1559.7,1559.6,7.02600887]
[1744382721465,0.394617,1559.7,1559.6,6.9619]
[1744382721676,0.394617,1559.7,1559.6,3.55]
[1744382721974,0.394617,1559.7,1559.6,13.40381629]
[1744382722464,0.394617,1559.7,1559.6,1.80229155]
[1744382722642,0.394617,1559.7,1559.6,8.21419155]
[1744382723035,0.394617,1559.7,1559.6,0.7789]
[1744382723235,0.394617,1559.7,1559.6,7.7408]
[1744382723444,0.394617,1559.7,1559.5,70.18053525]
[1744382723857,0.394617,1559.7,1559.5,58.968]
[1744382724539,13.218187,1559.7,1559.5,58.968]
[1744382724735,0.394617,1559.7,1559.2,11.49895288]
[1744382725065,6.4119,1559.6,1559.2,0.06412172]
[1744382725370,12.82403,1559.6,1559.2,6.41335]
[1744382725531,6.4119,1559.6,1559.1,19.64387288]
[1744382725731,6.4119,1559.6,1559.2,0.06412107]
[1744382725732,0.6806517,1559.6,1559.2,0.06412107]
[1744382725937,0.6806517,1559.6,1559.2,10.73043288]
[1744382725938,7.0925717,1559.6,1559.2,10.73043288]
[1744382726139,6.41232,1559.5,1559.1,15.79762509]
[1744382726363,6.41275,1559.4,1559.1,8.913]
[1744382726672,6.4136,1559.2,1558.7,6.41551]
[1744382726890,6.41406,1559.1,1558.8,6.41502]
[1744382727088,6.41231,1559.5,1558.8,6.41499]
[1744382727394,6.41418,1559.1,1558.7,11.51153288]
[1744382727690,3.0,1559.3,1558.7,11.51153288]
[1744382727691,6.41362,1559.2,1558.8,6.41497]
[1744382727891,9.41317,1559.3,1558.9,6.41451]
[1744382727892,6.41317,1559.3,1558.9,6.41451]
[1744382728183,6.41317,1559.3,1558.7,4.31697288]
[1744382728385,6.41421,1559.1,1558.8,6.4792719]
[1744382728597,12.82839,1559.1,1558.7,12.83095]
[1744382728802,6.41418,1559.1,1558.8,6.41517]
[1744382729089,1.28278,1559.1,1558.8,6.41504]
[1744382729256,7.6968,1559.1,1558.8,6.47918532]
[1744382729594,6.41471,1559.0,1558.5,7.19539]
[1744382729771,1.28278,1559.1,1558.8,6.41495]
[1744382729970,6.41373,1559.2,1558.8,6.41495]
[1744382730183,6.41322,1559.3,1558.9,6.41453]
[1744382730695,6.806177,1559.7,1559.1,6.96368]
[1744382730991,6.806177,1559.7,1559.3,6.41298]
[1744382731212,7.0926477,1559.6,1559.2,12.82659]
[1744382731359,13.5047577,1559.6,1559.2,12.82659]
[1744382731700,0.394617,1559.7,1559.4,6.41248]
[1744382732006,0.394617,1559.7,1559.1,3.55]
[1744382732007,0.394617,1559.7,1559.6,6.4119]
[1744382732163,0.394617,1559.7,1559.6,7.02600964]
[1744382732356,0.394617,1559.7,1559.6,6.4119]
[1744382732556,0.394617,1559.7,1559.5,12.82424]
[1744382732755,0.394617,1559.7,1559.6,6.9619]
[1744382733399,0.394617,1559.7,1559.6,7.7757]
[1744382734068,0.394617,1559.7,1559.6,11.26748042]
[1744382734791,0.394617,1559.7,1559.6,11.33157978]
[1744382735001,0.394617,1559.7,1559.6,11.26748042]
[1744382735210,0.394617,1559.7,1559.6,14.11577981]
[1744382736000,0.394617,1559.7,1559.6,10.71748042]
[1744382736175,0.394617,1559.7,1559.5,6.41212]
[1744382736393,0.394617,1559.7,1559.5,12.8884034]
[1744382736565,0.394617,1559.7,1559.5,6.4762334]
[1744382736763,6.806257,1559.7,1559.3,16.15258]
[1744382736966,0.6806257,1559.6,1559.3,15.32399]
[1744382737205,7.0925757,1559.6,1559.3,8.911]
[1744382737359,0.6806257,1559.6,1559.3,15.32409]
[1744382737856,0.394617,1559.7,1559.4,6.41262]
[1744382738097,0.394617,1559.7,1559.5,6.41226]
[1744382738299,0.394617,1559.7,1559.3,15.32409]
[1744382738471,6.41193,1559.6,1559.3,15.32399]
[1744382738668,6.41192,1559.6,1559.3,8.911]
[1744382738901,6.41192,1559.6,1559.3,15.324]
[1744382739208,0.394617,1559.7,1559.5,6.41226]
[1744382739388,0.394617,1559.7,1559.4,6.41263]
[1744382739571,0.394617,1559.7,1559.5,6.41227]
[1744382739777,0.394617,1559.7,1559.6,6.4119]
[1744382739977,0.394617,1559.7,1559.5,6.41227]
[1744382739978,0.394617,1559.7,1559.5,6.41215]
[1744382740310,0.394617,1559.7,1559.6,6.4119]
[1744382740487,0.394617,1559.7,1559.5,12.88840096]
[1744382740690,0.394617,1559.7,1559.5,12.88843096]
[1744382740892,0.394617,1559.7,1559.6,6.9619]
[1744382741265,0.394617,1559.7,1559.6,7.45159153]
[1744382741569,0.394617,1559.7,1559.6,10.45159153]
[1744382741796,0.394617,1559.7,1559.6,15.61176503]
[1744382742802,7e-06,1559.7,1559.6,15.61176503]
[1744382742965,0.05,1560.4,1560.3,6.40902]
[1744382744169,0.05,1560.4,1560.3,6.95902]
[1744382744671,0.05,1560.4,1560.3,7.77662]
[1744382744893,0.05,1560.4,1560.3,6.40902]
[1744382745065,0.05,1560.4,1560.3,6.95902]
[1744382745271,0.05,1560.4,1560.3,8.936768]
[1744382745611,0.05,1560.4,1560.0,6.40993]
[1744382745811,0.05,1560.4,1560.1,6.40958]
[1744382746001,12.81841,1560.3,1559.9,12.82102]
[1744382746198,6.40943,1560.2,1559.9,6.41048]
[1744382746875,6.40987,1560.1,1559.8,6.41096]
[1744382747076,6.40987,1560.1,1559.7,6.41133]
[1744382747077,6.41031,1560.0,1559.7,6.41133]
[1744382747324,12.81904,1560.2,1559.8,12.82204]
[1744382747491,12.81904,1560.2,1559.8,6.41102]
[1744382747824,6.4099,1560.1,1559.8,6.41093]
[1744382748006,0.05,1560.4,1560.2,6.4094]
[1744382748222,0.05,1560.4,1560.2,12.8187]
[1744382748541,0.05,1560.4,1560.0,6.41014]
[1744382748692,12.8184,1560.3,1559.8,12.8219]
[1744382748893,6.45866,1560.4,1559.9,6.41044]
[1744382749236,6.40917,1560.3,1559.9,6.41044]
[1744382749436,12.81834,1560.3,1559.9,6.41044]
[1744382749594,6.40954,1560.2,1559.8,12.82195]
[1744382749801,6.40954,1560.2,1559.8,6.41093]
[1744382750244,6.40954,1560.2,1559.8,6.4750323]
[1744382750423,8.045407,1560.4,1559.8,1.35274853]
[1744382750734,0.05,1560.4,1560.0,6.41019]
[1744382750941,0.05,1560.4,1559.7,6.41108]
[1744382751098,9.45871,1560.4,1559.9,6.41039]
[1744382751419,9.45871,1560.4,1559.9,12.82088]
[1744382751621,0.05,1560.4,1560.1,6.40967]
[1744382752001,0.05,1560.4,1560.2,6.40943]
[1744382752440,6.41249,1560.7,1560.2,12.81873]
[1744382752737,0.005,1560.7,1560.5,6.40816]
[1744382752948,0.005,1560.7,1560.6,6.40779]
[1744382753449,0.005,1560.7,1560.6,16.75196027]
[1744382753603,0.005,1560.7,1560.6,19.68789]
[1744382753604,1e-05,1560.7,1560.6,19.68789]
[1744382754439,1e-05,1560.7,1560.6,16.13789]
[1744382755016,1e-05,1560.7,1560.6,15.31379]
[1744382755415,1e-05,1560.7,1560.6,18.126768]
[1744382755817,1e-05,1560.7,1560.6,18.676768]
[1744382756040,1e-05,1560.7,1560.6,19.484968]
[1744382756724,1e-05,1560.7,1560.6,18.934968]
[1744382756946,1e-05,1560.7,1560.6,16.12199]
[1744382757647,1e-05,1560.7,1560.6,16.67199]
[1744382758022,1e-05,1560.7,1560.4,57.85240267]
[1744382758023,1e-05,1560.7,1560.3,6.40881]
[1744382758216,1e-05,1560.7,1560.6,6.40779]
[1744382758849,1e-05,1560.7,1560.6,15.29679]
[1744382759022,1e-05,1560.7,1560.6,18.108049]
[1744382759620,1e-05,1560.7,1560.6,15.29679]
[1744382760246,1e-05,1560.7,1560.6,15.84679]
[1744382760817,1e-05,1560.7,1560.6,20.14716429]
[1744382761021,1e-05,1560.7,1560.6,23.92056429]
[1744382761582,0.33405941,1562.1,1561.1,0.55]
[1744382761855,0.394617,1562.8,1562.3,6.40081]
[1744382762029,6.793647,1562.8,1562.3,15.28881]
[1744382762231,6.39947,1562.7,1562.3,6.40081]
[1744382762631,6.40033,1562.5,1562.2,6.40122]
[1744382762858,0.394617,1562.8,1562.2,6.40122]
[1744382763045,6.40013,1562.5,1562.1,12.86692795]
[1744382763243,12.80037,1562.5,1562.1,6.46543795]
[1744382763444,6.40082,1562.3,1562.0,65.24602]
[1744382763621,6.40082,1562.3,1562.0,58.844]
[1744382763828,6.40082,1562.3,1562.0,65.24604]
[1744382764026,0.640082,1562.2,1562.0,58.844]
[1744382764227,0.05,1562.4,1562.0,58.844]
[1744382764459,0.05,1562.4,1562.0,65.24591]
[1744382764661,0.05,1562.4,1562.2,6.40104]
[1744382764822,0.05,1562.4,1562.3,6.40081]
[1744382765022,0.05,1562.4,1562.2,12.80213]
[1744382765221,0.05,1562.4,1562.2,6.40104]
[1744382765461,0.05,1562.4,1562.2,6.40101]
[1744382765756,6.45056,1562.4,1562.1,6.40163]
[1744382766060,1.335059,1562.4,1562.1,6.40144]
[1744382766226,1.335059,1562.4,1562.3,6.40081]
[1744382766227,0.05,1562.4,1562.3,6.40081]
[1744382766431,0.05,1562.4,1562.3,11.3290172]
[1744382766956,1e-05,1562.4,1562.3,15.18620272]
[1744382767155,1e-05,1562.4,1562.3,17.28094147]
[1744382767723,0.394617,1562.8,1562.7,6.94918]
[1744382768066,0.394617,1562.8,1562.7,16.66655441]
[1744382768270,0.394617,1562.8,1562.7,16.59958]
[1744382768647,0.394617,1562.8,1562.7,16.04958]
[1744382769047,0.394617,1562.8,1562.7,16.53464292]
[1744382769472,0.394617,1562.8,1562.7,19.81586793]
[1744382769861,0.394617,1562.8,1562.7,16.53464292]
[1744382770042,0.394617,1562.8,1562.7,20.08464292]
[1744382770573,6.39918,1562.7,1562.4,0.5]
[1744382770788,6.39959,1562.6,1561.9,6.40245]
[1744382771079,6.40019,1562.5,1562.1,6.4016]
[1744382771283,6.39918,1562.7,1562.3,6.40056]
[1744382771284,6.39929,1562.7,1562.3,6.40056]
[1744382771439,6.39991,1562.6,1562.2,6.40116]
[1744382771644,6.39991,1562.6,1562.0,1.451045]
[1744382771645,6.40016,1562.5,1562.1,6.40148]
[1744382771840,6.39965,1562.6,1561.8,10.7809972]
[1744382771841,6.39959,1562.6,1561.8,10.7809972]
[1744382772188,6.4014,1562.2,1561.8,12.80552]
[1744382772484,6.4014,1562.2,1561.8,12.80546]
[1744382772784,6.40265,1561.9,1561.5,7.19897]
[1744382772940,6.40311,1561.8,1561.5,6.40397]
[1744382773161,6.40342,1561.7,1561.3,9.673]
[1744382773865,6.4037,1561.6,1561.4,0.5]
[1744382774597,12.80764,1561.6,1561.4,0.5]
[1744382774897,0.640311,1561.8,1561.4,0.5]
[1744382775206,6.40409,1561.5,1561.4,0.5]
[1744382775402,7.684886,1561.5,1561.4,0.5]
[1744382775909,6.40409,1561.5,1561.4,0.5]
[1744382776463,6.40526,1561.3,1560.9,14.0357072]
[1744382776663,12.81054,1561.3,1560.9,14.0357072]
[1744382776863,6.4045,1561.4,1561.0,0.06404906]
[1744382777087,6.40498,1561.3,1561.0,0.06404906]
[1744382777283,6.40536,1561.2,1560.9,14.0357072]
[1744382777489,6.40536,1561.2,1560.9,16.07995492]
[1744382778405,6.40383,1561.6,1561.0,0.61405115]
[1744382778709,6.40507,1561.3,1560.9,22.48649492]
[1744382778905,6.40458,1561.4,1560.9,22.48649492]
[1744382779211,12.80927,1561.4,1560.9,22.48634492]
[1744382779506,12.80932,1561.4,1561.0,2.24863449]
[1744382779883,6.40409,1561.5,1560.9,11.70174772]
[1744382780078,12.81119,1561.2,1560.9,9.6575]
[1744382780401,6.40614,1561.0,1560.9,8.879]
[1744382780609,6.40717,1560.8,1560.6,0.8029]
[1744382780912,6.40675,1560.9,1560.5,8.88]
[1744382781075,6.40495,1561.3,1560.5,21.74048548]
[1744382781076,6.40631,1561.0,1560.5,21.74048548]
[1744382781406,6.40494,1561.3,1560.5,21.74048548]
[1744382781571,12.81352,1560.9,1560.5,21.74048548]
[1744382781764,6.40673,1560.9,1560.5,21.74048548]
[1744382782097,12.81351,1560.9,1560.6,2.17404855]
[1744382782273,6.40673,1560.9,1560.6,2.17404855]
[1744382782593,6.407,1560.8,1560.6,2.17404855]
[1744382782795,6.40738,1560.7,1560.5,15.33244548]
[1744382782994,0.48536134,1560.7,1560.3,5.03348743]
[1744382783220,6.40861,1560.4,1560.3,4.23058743]
[1744382784009,12.81678,1560.5,1560.3,4.23058743]
[1744382784192,7.690288,1560.4,1560.3,4.23058743]
[1744382784400,6.40943,1560.2,1560.1,0.05]
[1744382785231,6.40918,1560.3,1560.1,0.05]
[1744382785522,6.40943,1560.2,1560.1,0.05]
[1744382786091,6.40918,1560.3,1560.1,0.05]
[1744382786284,6.40943,1560.2,1560.1,0.05]
[1744382786682,12.81851,1560.3,1560.1,0.05]
[1744382786878,6.40943,1560.2,1560.1,0.05]
[1744382788017,6.40918,1560.3,1560.1,0.05]
[1744382788708,12.81762,1560.4,1560.1,0.05]
[1744382789006,6.40903,1560.3,1560.1,0.05]
[1744382789512,6.40833,1560.5,1560.1,0.05]
[1744382789710,13.3069368,1560.5,1560.1,6.4598]
[1744382789892,6.40817,1560.6,1560.2,6.40938]
[1744382790086,12.81634,1560.6,1560.2,6.40938]
[1744382790290,6.40834,1560.5,1560.2,6.40938]
[1744382790490,12.81681,1560.5,1560.1,7.105735]
[1744382790700,6.40903,1560.3,1560.1,0.05]
[1744382790900,12.81842,1560.3,1560.1,0.05]
[1744382791104,6.40903,1560.3,1560.1,0.05]
[1744382791410,12.81842,1560.3,1560.1,0.05]
[1744382791613,6.40943,1560.2,1560.1,0.05]
[1744382791982,6.40903,1560.3,1560.1,0.05]
[1744382792184,12.8182,1560.3,1560.1,0.05]
[1744382792714,6.40943,1560.2,1560.1,0.05]
[1744382793525,7.691276,1560.2,1560.1,0.05]
[1744382796794,10.691276,1560.2,1560.1,1e-05]
[1744382796996,10.691276,1560.2,1559.1,49.974]
[1744382796997,6.731,1560.1,1559.1,0.05]
[1744382797323,6.4133,1559.3,1559.1,0.05]
[1744382797494,6.41294,1559.4,1559.1,0.05]
[1744382797688,6.41327,1559.3,1559.1,0.05]
[1744382798017,6.41354,1559.2,1559.1,0.05]
[1744382798230,6.4158,1558.7,1558.4,5.56211791]
[1744382798435,6.41464,1559.0,1558.5,0.85005979]
[1744382798610,6.41464,1559.0,1558.7,6.41555]
[1744382798811,12.82924,1559.0,1558.6,6.41583]
[1744382799137,12.82924,1559.0,1558.6,14.193458]
[1744382799514,6.4149,1558.9,1558.6,1.361808]
[1744382799713,12.82989,1558.9,1558.6,1.361808]
[1744382799922,12.82989,1558.9,1558.5,7.20225]
[1744382800231,6.88835205,1559.2,1558.4,5.56211791]
[1744382800232,13.61935205,1559.2,1558.4,5.56211791]
[1744382800405,12.83064,1558.8,1558.4,12.8335]
[1744382800601,12.82983,1558.9,1558.5,6.41626]
[1744382800815,12.82983,1558.9,1558.5,13.474146]
[1744382801138,12.82983,1558.9,1558.5,7.057886]
[1744382801344,6.41529,1558.8,1558.5,7.057876]
[1744382801546,6.41529,1558.8,1558.5,0.641626]
[1744382801843,12.83086,1558.8,1558.4,12.83344]
[1744382802054,6.41438,1559.0,1558.3,3.55]
[1744382802219,0.641327,1559.3,1558.6,0.7976]
[1744382802220,6.41354,1559.2,1558.6,0.7976]
[1744382802413,6.41397,1559.1,1558.8,12.83005]
[1744382802769,0.641327,1559.3,1558.8,12.83007]
[1744382802976,0.641327,1559.3,1558.8,6.41502]
[1744382803241,0.641327,1559.3,1558.9,6.41467]
[1744382803535,0.641327,1559.3,1558.9,6.41465]
[1744382803722,12.82489,1559.5,1558.9,6.41465]
[1744382804310,6.41279,1559.4,1558.9,6.41465]
[1744382804507,12.82571,1559.4,1558.9,6.41465]
[1744382804712,6.41313,1559.3,1558.8,6.41507]
[1744382805008,12.82617,1559.4,1558.8,6.41482]
[1744382805315,1.282617,1559.4,1558.9,6.41462]
[1744382805504,6.41272,1559.4,1559.0,6.41436]
[1744382805916,6.41233,1559.5,1559.0,6.41436]
[1744382806121,6.41192,1559.6,1559.1,6.41361]
[1744382806321,8.884,1559.7,1559.1,6.41395]
[1744382806524,12.82249,1559.8,1559.3,6.41279]
[1744382806731,7.693769,1559.7,1559.3,6.41279]
[1744382807016,7.693769,1559.7,1559.2,6.41342]
[1744382807416,7.693769,1559.7,1559.3,6.41307]
[1744382807623,6.41191,1559.6,1559.1,6.41373]
[1744382808140,6.41191,1559.6,1559.2,6.41341]
[1744382808346,14.105539,1559.7,1559.2,12.82682]
[1744382808654,6.41116,1559.8,1559.3,12.82603]
[1744382808858,12.8215,1559.9,1559.4,6.4127]
[1744382809050,15.29536,1560.0,1559.3,6.41313]
[1744382809342,8.885,1560.0,1559.7,6.41136]
[1744382809545,6.40996,1560.1,1559.7,6.41136]
[1744382809756,6.40856,1560.5,1559.7,0.641136]
[1744382809962,6.40856,1560.5,1560.0,6.41007]
[1744382810253,15.29246,1560.7,1560.2,6.40912]
[1744382810455,6.40794,1560.6,1560.2,6.40928]
[1744382810831,6.40794,1560.6,1560.1,6.40973]
[1744382811031,8.577982,1560.6,1560.1,12.81946]
[1744382811348,6.40856,1560.5,1560.0,6.90239833]
[1744382811527,6.40856,1560.5,1560.0,12.82024]
[1744382811731,6.40856,1560.5,1560.1,6.4098]
[1744382812182,6.40856,1560.5,1560.1,12.81949]
[1744382812329,2.170042,1560.6,1560.2,6.40943]
[1744382812675,12.81514,1560.7,1560.2,6.40943]
[1744382813079,6.40781,1560.6,1560.2,6.40943]
[1744382813451,6.40748,1560.7,1559.9,6.41049]
[1744382813452,6.40883,1560.4,1559.9,6.41049]
[1744382813779,6.40905,1560.3,1559.8,12.822]
[1744382813978,6.40905,1560.3,1559.9,6.41045]
[1744382814145,6.40864,1560.4,1560.0,6.41003]
[1744382814350,9.40789,1560.6,1560.1,6.40983]
[1744382814681,6.40868,1560.4,1560.0,6.41012]
[1744382814879,6.40803,1560.6,1559.9,0.641045]
[1744382815174,6.40744,1560.7,1559.9,0.641045]
[1744382815175,6.40744,1560.7,1560.3,6.40882]
[1744382815380,8.60784624,1560.7,1560.3,6.40882]
[1744382815546,2.20040624,1560.7,1560.1,6.40976]
[1744382815875,6.40881,1560.4,1560.0,6.41013]
[1744382816080,12.81764,1560.4,1560.0,6.41011]
[1744382816262,6.4083,1560.5,1559.8,9.6837]
[1744382816461,12.81669,1560.5,1560.0,6.40994]
[1744382816665,6.40867,1560.4,1560.0,12.81996]
[1744382817288,12.81749,1560.4,1560.0,6.40994]
[1744382817444,12.81933,1560.2,1559.8,16.09466]
[1744382817640,6.40989,1560.1,1559.8,8.883]
[1744382817841,6.41045,1560.0,1559.6,6.41178]
[1744382818040,6.41082,1559.9,1559.4,16.10614]
[1744382818279,6.41082,1559.9,1559.2,7.696212]
[1744382818280,9.40984,1560.1,1559.3,6.4131]
[1744382818473,6.41164,1559.7,1559.3,12.8261]
[1744382818675,6.41115,1559.8,1559.4,6.41261]
[1744382818887,7.052265,1559.8,1559.4,6.41261]
[1744382819069,7.052265,1559.8,1559.4,12.82519]
[1744382819250,7.052265,1559.8,1559.5,6.4123]
[1744382819585,13.463505,1559.8,1559.4,6.41258]
[1744382819736,6.41162,1559.7,1559.3,6.89472957]
[1744382819940,12.82334,1559.7,1559.3,6.89472957]
[1744382820139,6.41162,1559.7,1559.3,13.30773957]
[1744382820389,6.41055,1560.0,1559.3,13.30773957]
[1744382820390,6.41075,1559.9,1559.3,1.89440353]
[1744382820552,6.41075,1559.9,1559.5,6.41217]
[1744382820745,6.41078,1559.9,1559.4,6.41258]
[1744382820946,6.41115,1559.8,1559.4,12.82518]
[1744382821146,12.82094,1560.0,1559.3,6.47719383]
[1744382821371,6.41083,1559.9,1559.5,6.41196]
[1744382821677,6.41112,1559.8,1559.4,12.82518]
[1744382821883,6.41112,1559.8,1559.4,6.41258]